Cogmind - Beta 10.2 @@@ ROGUE MODE // 2020.12.03 @ 13:13:21 Player: Plexion Result: Self-destructed Performance ------------- Evolutions (2) 1000 Regions Visited (5) 1000 Robots Destroyed (30) 150 Value Destroyed (609) 609 Prototype IDs (23) 460 Alien Tech Used (0) 0 Bonus (171) 171 TOTAL SCORE: 3390 Bonus ------- Follower Combat Kills 302 Friendly Fire -131 Cogmind --------- Core Integrity 491/550 Matter 264/300 Energy 18/100 System Corruption 0% Temperature Cool (298) Movement Treading (160) Location -8/Materials Parts ------- > --- POWER (1) -------- (None) > --- PROPULSION (3) --- Light Treads Light Treads Light Treads > --- UTILITY (5) ------ Large Storage Unit Large Storage Unit Light Armor Plating Light Armor Plating Hardened Medium Armor Plating > --- WEAPON (2) ------- Arc Projector Heavy Assault Rifle > --- INVENTORY (16) --- Ion Engine Light Treads Light Treads Light Treads Light Treads High-capacity Matter Pod (200) Modified TNC Hacking Suite Hacking Suite Lightning Gun Plasma Cannon Light Assault Rifle Light Assault Rifle Light Assault Rifle Rocket Launcher Peak State ------------ > --- POWER ------------ Improved Ion Engine > --- PROPULSION ------- Light Treads Light Treads Light Treads > --- UTILITY ---------- Large Storage Unit Large Storage Unit Light Armor Plating Light Armor Plating Hardened Medium Armor Plating > --- WEAPON ----------- Arc Projector Heavy Assault Rifle > --- INVENTORY -------- Ion Engine Light Treads Light Treads Light Treads Light Treads High-capacity Matter Pod Modified TNC Hacking Suite Hacking Suite Lightning Gun Plasma Cannon Light Assault Rifle Light Assault Rifle Light Assault Rifle Rocket Launcher [Rating: 21] Favorites ----------- Power Improved Ion Engine Engine Improved Ion Engine Propulsion Light Treads Treads Light Treads Wheel Wheel Utility Large Storage Unit Storage Large Storage Unit Protection Light Armor Plating Weapon Light Assault Rifle Energy Gun EM Pulse Gun Energy Cannon Beam Cannon Ballistic Gun Light Assault Rifle Special Weapon Mining Laser Build | -11 -10 -10 -10 -9 -8 ------- Run | Scr Mat Min Exi Min Mat Slots Evolved 4 | . . . . . 4 Power . | . . . . . . Propulsion 1 | . . . . . 1 Utility 3 | . . . . . 3 Weapon . | . . . . . . Parts Attached 29 | 6 7 7 . . 9 Power 2 | 1 . 1 . . . Engine 2 | 1 . 1 . . . Core . | . . . . . . Reactor . | . . . . . . Propulsion 8 | 2 2 . . . 4 Treads 6 | . 2 . . . 4 Leg . | . . . . . . Wheel 2 | 2 . . . . . Hover . | . . . . . . Flight . | . . . . . . Utility 7 | 1 2 . . . 4 Device . | . . . . . . Storage 3 | 1 2 . . . . Processor . | . . . . . . Hackware . | . . . . . . Protection 4 | . . . . . 4 Artifact . | . . . . . . Weapon 12 | 2 3 6 . . 1 Energy Gun 3 | 1 1 . . . 1 Energy Cannon 1 | . . 1 . . . Ballistic Gun 7 | 1 2 4 . . . Ballistic Cannon . | . . . . . . Launcher . | . . . . . . Special Weapon 1 | . . 1 . . . Impact Weapon . | . . . . . . Slashing Weapon . | . . . . . . Piercing Weapon . | . . . . . . Special Melee Weapon . | . . . . . . Unidentified Prototypes . | . . . . . . Parts Lost 7 | . 4 1 . . 2 Power 1 | . . . . . 1 Propulsion 2 | . 2 . . . . Utility . | . . . . . . Weapon 4 | . 2 1 . . 1 Highest Loss Streak 3 | . 3 1 . . 2 Average Slot Usage (%) 98 | . 96 99 100 100 97 Engine 13 | . 14 14 14 14 8 Treads 25 | . 18 28 28 28 27 Wheel 2 | . 9 . . . . Storage 26 | . 25 28 28 28 18 Protection 2 | . . . . . 25 Energy Gun 1 | . 6 . . . 1 Ballistic Gun 24 | . 21 26 28 28 16 Naked Turns . | . . . . . . Heaviest Build 60 | 12 41 44 44 44 60 Greatest Support 60 | 20 40 40 40 40 60 Greatest Overweight (x) 3 | . 3 1 1 1 . Average Overweight (x) . | . . . 1 1 . Largest Inventory Capacity 16 | 6 16 16 16 16 16 Average Capacity 15 | 4 14 16 16 16 16 Most Carried 16 | 4 11 16 16 16 16 Average Carried 12 | 2 7 12 15 15 15 Final Capacity 16 | 6 16 16 16 16 16 Final Carried 16 | 4 11 16 16 16 15 Class Distribution -------------------- 93% | Mutant 6% | Scavenger-Mutant Dominant Class ---------------- Mutant | -10/Materials Mutant | -10/Mines Mutant | -10/Exiles Mutant | -9/Mines Scavenger-Mutant | -8/Materials Resources | -11 -10 -10 -10 -9 -8 ----------- Run | Scr Mat Min Exi Min Mat Matter Collected 985 | 227 265 214 18 36 225 Remotely . | . . . . . . Salvage Created 973 | . 398 115 17 30 413 Parts 76 | . 24 14 . . 38 Haulers Intercepted 2 | . 2 . . . . Recyclers Shooed 1 | . . . . . 1 Parts Field Recycled . | . . . . . . Retrieved Matter . | . . . . . . Parts Self-Destructed . | . . . . . . Prevented . | . . . . . . Kills | -11 -10 -10 -10 -9 -8 ------- Run | Scr Mat Min Exi Min Mat Combat Hostiles Destroyed 22 | . 10 4 . 1 7 Guns 22 | . 10 4 . 1 7 Classes Destroyed 9 | . 3 2 . . 4 Worker 1 | . . 1 . . . Builder 1 | . . . . . 1 Hauler 2 | . 2 . . . . Operator 2 | . . . . . 2 Watcher 1 | . . . . . 1 Swarmer 12 | . 6 3 . . 3 Grunt 7 | . 4 . . 1 2 Sentry 3 | . . 1 . . 2 Hunter 1 | . . . . . 1 Best Kill Streak 4 | . 3 3 . 1 4 Combat Bots Only 3 | . 3 3 . 1 3 Max Kills in Single Turn 1 | . 1 1 . 1 1 Gunslinging . | . . . . . . Exploded . | . . . . . . Melee . | . . . . . . Uniques/NPCs Destroyed . | . . . . . . Combat | -11 -10 -10 -10 -9 -8 -------- Run | Scr Mat Min Exi Min Mat Damage Taken 1511 | . 457 270 . 72 712 Core 217 | . 124 34 . . 59 Absorbed by Shields . | . . . . . . Core Remaining (%) 68 | 100 . . . 36 . Volleys Fired 125 | . 61 18 3 6 37 Largest 2 | . 2 2 2 2 2 Hottest 100 | . 80 100 43 43 78 Shots Fired 243 | . 120 32 6 12 73 Gun 240 | . 120 29 6 12 73 Cannon 1 | . . 1 . . . Launcher . | . . . . . . Special 2 | . . 2 . . . Kinetic 201 | . 92 29 6 12 62 Thermal 3 | . . 3 . . . Explosive . | . . . . . . Electromagnetic 39 | . 28 . . . 11 Robot Hit Streak 12 | . 7 11 10 4 12 Robot Miss Streak 4 | . 4 2 . 3 2 Penetration Max . | . . . . . . Secondary Targets . | . . . . . . Shots Hit Robots 157 | . 72 21 6 7 51 Core Hits 57 | . 24 9 2 1 21 Critical Hits 1 | . 1 . . . . Critical Kills . | . . . . . . Critical Parts Destroyed 1 | . 1 . . . . Melee Attacks . | . . . . . . Impact . | . . . . . . Slashing . | . . . . . . Piercing . | . . . . . . Sneak Attacks . | . . . . . . Combat Hostiles . | . . . . . . Follow-up Attacks . | . . . . . . Damage Inflicted 1707 | . 678 196 86 86 661 Guns 1693 | . 678 196 86 86 647 Cannons . | . . . . . . Explosions . | . . . . . . Melee . | . . . . . . Ramming 14 | . . . . . 14 Kinetic 1338 | . 427 196 86 86 543 Thermal . | . . . . . . Explosive . | . . . . . . Electromagnetic 355 | . 251 . . . 104 Impact . | . . . . . . Slashing . | . . . . . . Piercing . | . . . . . . Highest Corruption . | . . . . . . Average Corruption . | . . . . . . Corruption Purged . | . . . . . . Overload Shots . | . . . . . . Overflow Damage . | . . . . . . Projectiles . | . . . . . . Explosions . | . . . . . . Melee . | . . . . . . Knockbacks . | . . . . . . Impact . | . . . . . . Kinetic . | . . . . . . Secondary . | . . . . . . Self-Inflicted Damage . | . . . . . . Shots . | . . . . . . Rammed 1 | . . . . . 1 Targets Rammed 1 | . . . . . 1 Kicked . | . . . . . . Crushed . | . . . . . . Highest Temperature 298 | . 117 40 . 1 298 Average Temperature 65 | . 47 18 . 1 92 Received Heat Transfer 285 | . 93 54 . 12 126 Effects 4 | . . . . . 4 Energy Bleed 2 | . . . . . 2 Interference 2 | . . . . . 2 Siege Activations . | . . . . . . Robots Corrupted . | . . . . . . Combat Hostiles . | . . . . . . Parts Fried 1 | . 1 . . . . Impact Corruptions . | . . . . . . Robots Melted . | . . . . . . Combat Hostiles . | . . . . . . Parts Melted . | . . . . . . Heat Transferred . | . . . . . . Parts Sabotaged . | . . . . . . Parts Stolen . | . . . . . . Parts Stripped . | . . . . . . Power Chain Reactions . | . . . . . . Missiles Intercepted . | . . . . . . Alert | -11 -10 -10 -10 -9 -8 ------- Run | Scr Mat Min Exi Min Mat Peak Influence 361 | . 200 123 . 183 361 Initial . | . . . . . . Average 76 | . 54 42 . 97 206 Maximum Alert Level 1 | . 1 . . . 1 Low Security (%) 94 | 100 99 100 . 100 53 Level 1 5 | . . . . . 46 Level 2 . | . . . . . . Level 3 . | . . . . . . Level 4 . | . . . . . . Level 5 . | . . . . . . High Security . | . . . . . . Max Security . | . . . . . . Squads Dispatched 3 | . . . . 1 2 Investigation 1 | . . . . 1 . Extermination . | . . . . . . Reinforcement 1 | . . . . . 1 Assault . | . . . . . . Garrison 1 | . . . . . 1 Intercept . | . . . . . . Construction Impeded . | . . . . . . Haulers Reinforced . | . . . . . . Stealth | -11 -10 -10 -10 -9 -8 --------- Run | Scr Mat Min Exi Min Mat Distress Signals 2 | . . . . . 2 Communications Jammed . | . . . . . . Distress Signals . | . . . . . . Times Spotted 47 | . 20 5 . 6 16 Peak Tracking Total 5 | . 5 3 . 3 4 Tactical Retreats 1 | . . . . 1 . Traps | -11 -10 -10 -10 -9 -8 ------- Run | Scr Mat Min Exi Min Mat Traps Triggered . | . . . . . . Indirectly . | . . . . . . Trap Hack Attempts . | . . . . . . Triggered . | . . . . . . Disarmed . | . . . . . . Reprogrammed . | . . . . . . Reused . | . . . . . . Traps Extracted . | . . . . . . Installed . | . . . . . . Triggered . | . . . . . . Machines | -11 -10 -10 -10 -9 -8 ---------- Run | Scr Mat Min Exi Min Mat Machines Disabled 1 | . . . . . 1 Max in Single Turn 1 | . . . . . 1 Machines Sabotaged . | . . . . . . Garrisons Compromised . | . . . . . . Overloaded Fab Kills . | . . . . . . Fab Network Shutdowns . | . . . . . . Hacking | -11 -10 -10 -10 -9 -8 --------- Run | Scr Mat Min Exi Min Mat Machines Accessed 6 | . 2 1 2 1 . Terminals 3 | . 2 1 . . . Fabricators . | . . . . . . Repair Stations . | . . . . . . Recycling Units . | . . . . . . Scanalyzers . | . . . . . . Garrison Access . | . . . . . . Total Hacks 15 | . 9 3 2 1 . Successful 11 | . 5 3 2 1 . Failed 4 | . 4 . . . . Catastrophic . | . . . . . . Database Lockouts . | . . . . . . Manual 12 | . 8 3 1 . . Terminals 12 | . 9 3 . . . Fabricators . | . . . . . . Repair Stations . | . . . . . . Recycling Units . | . . . . . . Scanalyzers . | . . . . . . Garrison Access . | . . . . . . Terminal Hacks 8 | . 2 3 2 1 . Record 1 | . . . 1 . . Part Schematic 1 | . . 1 . . . Robot Analysis 2 | . 1 1 . . . Open Door 1 | . . . . 1 . Zone Layout 2 | . 1 1 . . . EX-Prototype ID Bank 1 | . . . 1 . . Fabricator Hacks . | . . . . . . Repair Station Hacks . | . . . . . . Recycling Unit Hacks . | . . . . . . Scanalyzer . | . . . . . . Garrison Access Hacks . | . . . . . . Unauthorized Hacks 3 | . 3 . . . . Terminals 3 | . 3 . . . . Track 2 | . 2 . . . . Operators 1 | . 1 . . . . Fabricators . | . . . . . . Repair Stations . | . . . . . . Recycling Units . | . . . . . . Scanalyzers . | . . . . . . Garrison Access . | . . . . . . Data Cores Recovered . | . . . . . . Used . | . . . . . . Hacking Detections 2 | . 2 . . . . Full Trace Events . | . . . . . . Feedback Events . | . . . . . . Feedback Blocked . | . . . . . . Robot Schematics Acquired . | . . . . . . Robots Built . | . . . . . . Matter . | . . . . . . Time . | . . . . . . Total Robot Build Rating . | . . . . . . Part Schematics Acquired 1 | . . 1 . . . Parts Built . | . . . . . . Matter . | . . . . . . Time . | . . . . . . Total Part Build Rating . | . . . . . . Parts Repaired . | . . . . . . Time . | . . . . . . Parts Recycled . | . . . . . . Recycled Matter . | . . . . . . Retrieved Matter . | . . . . . . Retrieved Components . | . . . . . . Parts Scanalyzed . | . . . . . . Part Schematics Acquired . | . . . . . . Parts Damaged . | . . . . . . Bothacking | -11 -10 -10 -10 -9 -8 ------------ Run | Scr Mat Min Exi Min Mat Used RIF Installer . | . . . . . . Robots Hacked . | . . . . . . Non-combat . | . . . . . . Combat . | . . . . . . Robot Hacks Applied . | . . . . . . Relay Couplers Released . | . . . . . . Robots Rewired 2 | . . . 2 . . Allies Hacked . | . . . . . . Hacks Repelled . | . . . . . . Allies | -11 -10 -10 -10 -9 -8 -------- Run | Scr Mat Min Exi Min Mat Total Allies 3 | . . 1 2 . . Largest Group 2 | . . 1 2 2 2 Highest-Rated Group 31 | . . 31 31 29 29 Highest-Rated Ally 31 | . . 31 31 21 21 Total Orders . | . . . . . . Ally Attacks 49 | . . 19 . 18 12 Total Damage 765 | . . 311 . 247 207 Kills 14 | . . 3 . 7 4 Allies Corrupted . | . . . . . . Allies Melted . | . . . . . . Intel | -11 -10 -10 -10 -9 -8 ------- Run | Scr Mat Min Exi Min Mat Robot Analysis Total 2 | . 1 1 . . . Derelict Logs Recovered 2 | . . 1 . 1 . Drone Launches . | . . . . . . Drone Recoveries . | . . . . . . Exploration | -11 -10 -10 -10 -9 -8 ------------- Run | Scr Mat Min Exi Min Mat Turns Passed 3689 | 52 900 965 834 609 329 Spaces Moved 2014 | 46 528 545 453 327 115 Core 1 | 1 . . . . . Treads 1737 | . 297 545 453 327 115 Legs . | . . . . . . Wheels 276 | 45 231 . . . . Hover . | . . . . . . Flight . | . . . . . . Fastest Speed 50 | 50 80 160 180 180 160 Average Speed 158 | 79 127 162 180 180 160 Slowest Speed 180 | 80 160 180 180 180 160 Overloaded Moves . | . . . . . . Propulsion Burnouts . | . . . . . . Robots Hopped . | . . . . . . Cave-ins Triggered . | . . . . . . Exploration Rate (%) 59 | 2 78 89 89 81 15 Regions Visited 5 Branch Regions 3 Pre-discovered Areas 2 | . . . 1 1 . Known Exits Taken . | . . . . . . Unknown Exits Taken 5 | 1 1 1 1 1 . Scrap Searched 3 | . . 2 . 1 . Spaces Dug 2 | . . 2 . . . Terrain Destroyed 2 | . . 2 . . . Melee . | . . . . . . Projectile 2 | . . 2 . . . AOE . | . . . . . . Terrain Rammed . | . . . . . . Walls Destroyed . | . . . . . . Machines Disabled . | . . . . . . Actions | -11 -10 -10 -10 -9 -8 --------- Run | Scr Mat Min Exi Min Mat Total 2300 | 58 652 597 466 340 187 Wait 84 | 3 47 16 . . 18 Move 2009 | 45 527 544 452 326 115 Hop . | . . . . . . Pick Up 28 | 4 10 6 1 4 3 Fast Attach 10 | 6 1 2 . . 1 Attach 9 | . 4 1 . . 4 Detach 2 | . . 2 . . . Swap 10 | . 2 4 . . 4 Drop 13 | . . 4 1 4 4 Fire 125 | . 61 18 3 6 37 Melee . | . . . . . . Ram . | . . . . . . Kick . | . . . . . . Crush 1 | . . . . . 1 Escape Stasis . | . . . . . . Rewire 9 | . . . 9 . . Trap . | . . . . . . Miscellaneous . | . . . . . . Route ------- -11/Scrapyard -10/Materials (discovered 4 exits: [*Mat x2] / *Min x2) -10/Mines (discovered 3 exits: [*Mat x2] / *Exi) -10/Exiles -9/Mines (discovered 2 exits: [*Mat x2]) -8/Materials (discovered 3 exits: Fac x2 / [*Sto]) History --------- Turn | Location | Event 11 | -11/Scrapyard | Discovered new exit (range 15) 53 | -11/Scrapyard | Entered Materials 117 | -10/Materials | Discovered new exit (range 12) 222 | -10/Materials | Discovered new exit (range 11) 320 | -10/Materials | Build established: Mutant 403 | -10/Materials | Lost 3 parts (2n1w) 549 | -10/Materials | Discovered new exit (range 6) 871 | -10/Materials | Discovered new exit (range 9) 953 | -10/Materials | Entered Mines 1129 | -10/Mines | Discovered new exit (range 4) 1154 | -10/Mines | Core integrity fell below 50% 1187 | -10/Mines | Escorted by a lone wolf Derelict 1319 | -10/Mines | Learned Materials emergency access door positions 1351 | -10/Mines | Discovered new exit (range 8) 1909 | -10/Mines | Deemed a non-threat by the Exiles lab entrance 1911 | -10/Mines | Discovered new exit (range 5) 1918 | -10/Mines | Entered Exiles 1918 | -10/Exiles | Found Exiles lab destroyed 1918 | -10/Exiles | Accompanied by 1 ally 2116 | -10/Exiles | Learned location of Zion (-6) 2512 | -10/Exiles | Opened EX-Vault 2531 | -10/Exiles | Found Modified TNC 2732 | -10/Exiles | Discovered new exit (range 12) 2752 | -10/Exiles | Entered Mines 2752 | -9/Mines | Accompanied by 2 allies 2779 | -9/Mines | Excavation squad dispatched 2779 | -9/Mines | A large section of the Mines collapsed 2829 | -9/Mines | Met a Derelict shopkeep closing up shop 2908 | -9/Mines | Discovered new exit (range 15) 3068 | -9/Mines | Received a Rocket Launcher from a helpful Derelict 3194 | -9/Mines | Learned location of 2 exits from Materials 3206 | -9/Mines | Learned location of Storage (-8) 3327 | -9/Mines | Discovered new exit (range 14) 3361 | -9/Mines | Entered Materials 3361 | -8/Materials | Accompanied by 2 allies 3361 | -8/Materials | Evolved 4 slots: Propulsion x1, Utility x3 3362 | -8/Materials | Identified exit to Factory 3443 | -8/Materials | Discovered new exit (range 16) 3631 | -8/Materials | Garrison activated, responded to threat 3690 | -8/Materials | Self-destructed Last Messages --------------- 03659_ Y-45 Defender destroyed. 03660_ Slug penetrates Wall. 03661_ K-01 Serf collects debris. 03663_ Penetrated by Slug. 03663_ Matter Pump disabled. 03666_ K-01 Serf collects debris. 03672_ Penetrated by Slug. 03673_ K-01 Serf collects debris. 03678_ Slug penetrates Wall. 03678_ Imp. Ion Engine destroyed. 03679_ K-01 Serf collects debris. 03681_ Overheating: Energy bleed (-13). 03681_ K-01 Serf collects debris. 03687_ Overheating: System interference. 03687_ Hvy. Assault Rifle temporarily disabled. 03687_ K-01 Serf collects debris. 03687_ Penetrated by Slug. 03688_ Overheating: Energy bleed (-9). 03688_ W-25 Informer sends out distress signal. 03689_ K-01 Serf collects debris. Map ----- +----------------------------------------------------+ | ?????????????????????????????????????????????????? | | ?????????????????????????????????????????????????? | | ?????????????????????????????????????????????????? | | ?????????????????????????????????????????????????? | | ?????????????????????????????????????????????????? | | ????????????????????????????????????????????????## | | ????????????????????????????????????????????????# | | ????????????????????????????????????????????????# | | ?????????????????????? ??????# ##+########### | | ????????????????????##+#?????# %!! | | ????????????????????# ????? < % ==%* * | | ????????????????????# ?????# ! | | ????????????????????# ?????# ############## | | ????????????????????+ ????????????????????????# | | ????????????????????# ??????????????########### | | ????????????????????# #?????????????# # | | ????????????????????# #?????????????# """"" # | | ????????????????????# #?????????????# ""T"" #% | | ????????????????????# #????????????## % + | | ????????????????????# #????????????# """ """ # | | ????????????????????#=!!/????????????## """=""" # | | ????????????????????#!%=#?????????????# """%" " # | | ????????????????????#*=[#?????????????# * %[# | | ????????????????????#w=h###################+##### | | ????????????????????# !*%%[ % = | | ????????????????????# [!@ ! | | ????????????????????# k =k % !!! | | ????????????????????# !/! ##### | | ????????????????????# // %%" !/ #???? | | ????????????????????# // "%" #???? | | ????????????????????# ""% ##### | | ????????????????????# a !!! | | ????????????????????# !!! | | ????????????????????# k t !!! | | ????????????????????# ################## | | ????????????????????#a ?????????????????# | | ????????????????????# ?????????????????# | | ????????????????????+ ?????????????????# | | ??????????????????? # ?????????????????# | | ?????????????????? # ?????????????????# | | ????????????????????# ??????????????????# #### | | ????????????????????#????????????????????##+##???# | | ??????????????+??????????????????????????????????? | | ?????????????????????????????????????????????????? | | ?????????????????????????????????????????????????? | | ?????????????????????????????????????????????????? | | ?????????????????????????????????????????????????? | | ?????????????????????????????????????????????????? | | ?????????????????????????????????????????????????? | | ?????????????????????????????????????????????????? | +----------------------------------------------------+ Best States ------------- Heat Dissipation 31 Energy Generation 12 Energy Capacity 265 Matter Stores 300 Matter Capacity 300 Sight Range 16 Terrain Scan Density 10 Armor Coverage 525 Evasion (%) 44 Recoil Reduction 3 Item Schematics ----------------- Hcp. Storage Unit | -10/Mines | Hacked Robot Schematics ------------------ None Fabricated ------------ Nothing Alien Tech Used ----------------- None Achievements -------------- None Challenges ------------ None Game ------ Seed CompositeArchitectChip Manual? 0 Play Time 00:18:41 Cumulative 141.2 hours Start 2020.12.03 @ 12:57:05 End 2020.12.03 @ 13:13:21 Sessions 1 Manual Loads 0 Difficulty Rogue Special Mode None Game No. 172 Rogue 85 Adventurer 87 Explorer 0 Win Type - Total 4 Types 3/0/0/1/0/0/0/0/0 Lore% 59 Gallery% 68 Achievement% 57 Wizard Run 0 Options --------- ASCII 0 Keyboard 1 Movement Numpad Keybinds 0 Fullscreen 1 Font 18/Smallcaps Map View 76x50 Tactical HUD 1 Map Filters NONE Filters NONE Steam 1 RUN: 3f945a45-b871-4be7-acc0-b68751f38407